Cogmind - Beta 9 @@@ ROGUE MODE // 2019.10.22 @ 22:03:10 Player: Trione Result: Destroyed by G-47 Trooper with Particle Gun Performance ------------- Evolutions (3) 1500 Regions Visited (11) 2200 Robots Destroyed (246) 1230 Value Destroyed (8922) 8922 Prototype IDs (9) 180 Alien Tech Used (0) 0 Bonus (4269) 4269 TOTAL SCORE: 18301 Bonus ------- High Alert Combat Kills 1966 Follower Combat Kills 234 Entered Garrisons 600 Used RIF Installer 1500 Friendly Fire -31 Cogmind --------- Core Integrity 0/700 Matter 11/300 Energy 300/300 System Corruption 7% Temperature Cool (46) Location -7/Factory Parts ------- Power (1) Enhanced Nuclear Core Propulsion (2) Armored Treads Medium Treads Utility (8) High-capacity Storage Unit High-capacity Storage Unit High-capacity Storage Unit Hardened Light Armor Plating Hardened Light Armor Plating Hardened Light Armor Plating Hardlight Generator Relay Coupler [NC] (3) Weapon (2) Rocket Array Chainsword Inventory (28) Enhanced Nuclear Core Armored Treads Coolant Injector Large Storage Unit High-capacity Storage Unit Improved Targeting Computer Matter Filter Weapon Cycler Weapon Cycler Hardened Light Armor Plating Improved Light Armor Plating Improved Medium Armor Plating Relay Coupler [Sentry] (24) Heavy Particle Cannon Heavy Particle Cannon Advanced Assault Cannon Mini Assault Cannon Improved Grenade Launcher Heavy Rocket Launcher Heavy Missile Launcher Rocket Array Improved Datajack Remote Datajack Peak State ------------ Power Enhanced Nuclear Core Propulsion Armored Treads Medium Treads Utility High-capacity Storage Unit High-capacity Storage Unit High-capacity Storage Unit Advanced Signal Interpreter Launcher Guidance Computer Matter Filter Improved Medium Armor Plating Improved Medium Armor Plating Weapon Lightning Gun Rocket Array Inventory Enhanced Nuclear Core Armored Treads Coolant Injector Large Storage Unit High-capacity Storage Unit Improved Targeting Computer Weapon Cycler Weapon Cycler Improved Medium Armor Plating Hardlight Generator Relay Coupler [NC] Relay Coupler [Sentry] System Backup Module Gatling Laser Improved EM Pulse Cannon Heavy Particle Cannon Heavy Particle Cannon Advanced Assault Cannon Mini Assault Cannon Improved Grenade Launcher Heavy Rocket Launcher Heavy Missile Launcher Rocket Array Improved Datajack Remote Datajack Chainsword [Rating: 52] Favorites ----------- Power Nuclear Core Engine Light Ion Engine Power Core Nuclear Core Propulsion Light Treads Treads Light Treads Wheel Armored Huge Wheel Hover Unit Improved Airjet Utility High-capacity Storage Unit Device Advanced Sensor Array Storage High-capacity Storage Unit Processor Advanced Signal Interpreter Hackware Relay Coupler [NC] Protection Improved Light Armor Plating Weapon Heavy Particle Cannon Energy Gun Precision Beam Rifle Energy Cannon Heavy Particle Cannon Ballistic Gun Gauss Rifle Ballistic Cannon Advanced Assault Cannon Launcher Rocket Array Special Weapon Remote Datajack Slashing Weapon Chainsword Special Melee Weapon Improved Datajack Build | -11 -10 -10 -10 -9 -8 -8 -8 -8 -7 -7 -7 ------- Run | Scr Mat Min Exi Min Mat Gar Mat Gar Fac Gar Fac Slots Evolved 6 | . . . . . 4 . . . 2 . . Power . | . . . . . . . . . . . . Propulsion . | . . . . . . . . . . . . Utility 6 | . . . . . 4 . . . 2 . . Weapon . | . . . . . . . . . . . . Parts Attached 315 | 6 12 12 1 2 11 14 1 22 93 15 126 Power 13 | 1 . 2 . . . 2 . 1 5 . 2 Engine 6 | 1 . 2 . . . . . 1 1 . 1 Core 7 | . . . . . . 2 . . 4 . 1 Reactor . | . . . . . . . . . . . . Propulsion 29 | 2 5 2 . . 2 1 . 4 2 . 11 Treads 13 | . 2 . . . 2 1 . 4 1 . 3 Leg . | . . . . . . . . . . . . Wheel 12 | 2 3 2 . . . . . . 1 . 4 Hover 4 | . . . . . . . . . . . 4 Flight . | . . . . . . . . . . . . Utility 99 | 1 4 . 1 . 4 5 . 5 37 1 41 Device 53 | . . . . . 2 4 . 4 17 . 26 Storage 10 | 1 4 . 1 . 1 . . 1 1 . 1 Processor 2 | . . . . . . . . . 2 . . Hackware 5 | . . . . . . . . . 3 . 2 Protection 29 | . . . . . 1 1 . . 14 1 12 Artifact . | . . . . . . . . . . . . Weapon 174 | 2 3 8 . 2 5 6 1 12 49 14 72 Energy Gun 26 | 2 2 1 . . 1 4 . 1 3 2 10 Energy Cannon 48 | . . 3 . . 1 . . 6 21 1 16 Ballistic Gun 9 | . . 1 . . 1 . . . 4 . 3 Ballistic Cannon 28 | . . . . . 1 . . 4 5 2 16 Launcher 23 | . . 2 . 1 . 2 . 1 2 5 10 Special Weapon 6 | . . . . . . . . . 2 . 4 Impact Weapon . | . . . . . . . . . . . . Slashing Weapon 23 | . 1 1 . 1 1 . 1 . 7 2 9 Piercing Weapon . | . . . . . . . . . . . . Special Melee Weapon 11 | . . . . . . . . . 5 2 4 Unidentified Prototypes 6 | . . . . . 1 . . . 1 . 4 Parts Lost 41 | . 1 6 . 1 2 7 . 6 8 . 10 Power 7 | . . 2 . . . 3 . . 2 . . Propulsion 10 | . 1 2 . . 2 1 . 2 1 . 1 Utility 10 | . . . . . . 1 . 2 2 . 5 Weapon 14 | . . 2 . 1 . 2 . 2 3 . 4 Highest Loss Streak 4 | . 1 2 . 1 2 4 . 2 2 . 2 Average Slot Usage (%) 94 | . 97 98 100 100 95 89 81 97 93 92 93 Engine 4 | . 14 13 14 14 9 1 . 8 . . 3 Core 3 | . . . . . . 2 . . 6 7 3 Treads 6 | . . . . . 12 17 18 17 5 . 3 Wheel 7 | . 26 27 28 28 4 . . . 4 7 5 Device 9 | . . . . . 14 14 18 23 8 . 8 Storage 26 | . 26 28 28 28 27 27 27 29 28 23 23 Processor 6 | . . . . . . . . . 7 15 12 Hackware 2 | . . . . . . . . . 3 7 2 Protection 8 | . . . . . 9 12 9 . 10 14 12 Energy Gun 4 | . 22 11 . . 3 11 5 . 1 1 2 Energy Cannon 6 | . . 8 28 14 9 1 . 15 7 . 1 Ballistic Cannon 1 | . . . . . . . . 1 . . 2 Slashing Weapon 3 | . 5 2 . 14 3 . 3 . 2 4 4 Naked Turns . | . . . . . . . . . . . . Heaviest Build 139 | 11 55 57 73 73 109 113 103 133 139 120 138 Greatest Support 48 | 26 40 20 20 20 40 40 40 40 40 28 48 Greatest Overweight (x) 5 | . 2 2 3 3 5 2 2 5 4 4 5 Average Overweight (x) 2 | . . 2 2 3 3 2 2 2 3 4 3 Largest Inventory Capacity 42 | 6 18 18 20 20 28 28 28 34 42 28 34 Average Capacity 27 | 5 11 18 18 20 27 28 28 29 33 28 28 Most Carried 34 | 6 14 14 13 15 23 25 21 34 34 28 28 Average Carried 25 | 3 9 11 10 13 16 21 21 29 32 27 27 Final Capacity 28 | . . . . . . . . . . . 28 Final Carried 23 | . . . . . . . . . . . 23 Class Distribution -------------------- 64% | Hauler-Mutant 16% | Bothacker-Mutant 11% | Mutant 4% | Commander-Mutant 3% | Bothacker-Skirmisher Dominant Class ---------------- Mutant | -10/Materials Mutant | -10/Mines Mutant | -10/Exiles Hauler-Mutant | -9/Mines Hauler-Mutant | -8/Materials Hauler-Mutant | -8/Garrison Hauler-Mutant | -8/Materials Hauler-Mutant | -8/Garrison Bothacker-Mutant | -7/Factory Hauler-Mutant | -7/Garrison Hauler-Mutant | -7/Factory Resources | -11 -10 -10 -10 -9 -8 -8 -8 -8 -7 -7 -7 ----------- Run | Scr Mat Min Exi Min Mat Gar Mat Gar Fac Gar Fac Matter Collected 4947 | 260 115 108 . 130 139 263 . 391 1205 353 1983 Remotely . | . . . . . . . . . . . . Salvage Created 8176 | 75 599 344 . 101 189 578 . 712 1705 314 3559 Parts 420 | 5 37 27 . 8 11 25 . 39 83 19 166 Haulers Intercepted 5 | . 2 . . . 1 . . . 1 . 1 Recyclers Shooed 15 | . 2 1 . . . . . . 4 . 8 Parts Field Recycled . | . . . . . . . . . . . . Retrieved Matter . | . . . . . . . . . . . . Parts Self-Destructed . | . . . . . . . . . . . . Prevented . | . . . . . . . . . . . . Kills | -11 -10 -10 -10 -9 -8 -8 -8 -8 -7 -7 -7 ------- Run | Scr Mat Min Exi Min Mat Gar Mat Gar Fac Gar Fac Combat Hostiles Destroyed 170 | . 9 13 . 4 1 14 . 21 26 12 70 Melee 3 | . . 1 . . . . . . . . 2 Guns 35 | . 9 4 . . . 12 . . 3 . 7 Cannons 60 | . . . . . 1 . . 19 14 1 25 AOE 65 | . . 7 . 4 . 2 . 2 6 11 33 Classes Destroyed 16 | 2 5 2 . . . 1 . 2 3 . 1 Worker 19 | . . 1 . . . . . . 1 . 17 Builder 10 | . . 1 . . . . . . 4 . 5 Tunneler 5 | 1 . 1 . 1 . . . . . . 2 Hauler 5 | . 2 . . . 1 . . . 1 . 1 Recycler 20 | 1 3 . . 1 1 . . . 6 . 8 Mechanic 1 | . . . . . . . . . 1 . . Operator 4 | . 1 . . . 1 . . . . . 2 Watcher 12 | . 3 . . . . 1 . . 2 . 6 Swarmer 40 | . 7 6 . 4 . 7 . 7 5 4 . Grunt 78 | . 2 7 . . 1 6 . 5 8 5 44 Brawler 6 | . . . . . . . . . 1 1 4 Duelist 11 | . . . . . . . . 4 2 1 4 Protector 3 | . . . . . . . . . . . 3 Sentry 16 | . . . . . . . . 5 6 . 5 Hunter 4 | . . . . . . 1 . . . 1 2 Programmer 12 | . . . . . . . . . 4 . 8 Best Kill Streak 19 | 2 5 9 . 4 2 7 . 5 5 6 19 Combat Bots Only 9 | . 3 7 . 4 1 7 . 5 3 6 9 Max Kills in Single Turn 7 | 2 1 2 . 3 1 1 . 1 2 3 7 Gunslinging . | . . . . . . . . . . . . Exploded 4 | . . 2 . 3 . 1 . 1 1 3 4 Melee 1 | . . 1 . . . . . . . . 1 Uniques/NPCs Destroyed . | . . . . . . . . . . . . Combat | -11 -10 -10 -10 -9 -8 -8 -8 -8 -7 -7 -7 -------- Run | Scr Mat Min Exi Min Mat Gar Mat Gar Fac Gar Fac Damage Taken 8432 | . 286 380 . 88 186 1011 195 666 2197 134 3289 Core 1169 | . 79 60 . 6 62 113 32 114 324 49 330 Absorbed by Shields 414 | . . . . . . . . . . . 414 Core Remaining (%) 61 | 100 . . . 42 . . . 41 . . . Volleys Fired 501 | 5 33 20 . 2 21 41 . 58 118 16 187 Largest 2 | 2 2 2 . 1 1 2 . 2 2 2 2 Hottest 155 | 90 90 90 . 33 61 122 . 150 150 124 155 Shots Fired 742 | 10 66 32 . 2 21 73 . 87 169 18 264 Gun 270 | 10 66 24 . . 7 62 . . 37 1 63 Cannon 391 | . . . . . 14 7 . 81 107 5 177 Launcher 56 | . . 8 . 2 . 4 . 6 6 12 18 Special 25 | . . . . . . . . . 19 . 6 Kinetic 189 | . . 1 . . 14 . . 19 37 3 115 Thermal 265 | 5 33 11 . . 7 46 . 62 60 . 41 Explosive 56 | . . 8 . 2 . 4 . 6 6 12 18 Electromagnetic 207 | 5 33 12 . . . 23 . . 47 3 84 Robot Hit Streak 14 | 4 7 11 . . 6 9 . 7 14 6 13 Robot Miss Streak 6 | 1 3 2 . . 6 3 . 2 4 2 5 Penetration Max 2 | . . . . . . . . 2 . . . Secondary Targets 5 | . 1 . . . . 4 . . . . . Max Gunslinging Chain 1 | . 1 . . . . 1 . . . . . Shots Hit Robots 511 | 7 39 24 . 6 12 52 3 39 126 11 192 Core Hits 456 | 3 23 20 . 6 6 32 . 30 68 32 236 Critical Hits 10 | . . . . . 2 . . 3 . . 5 Critical Kills 5 | . . . . . 1 . . 1 . . 3 Critical Parts Destroyed 5 | . . . . . 1 . . 2 . . 2 Melee Attacks 167 | . 17 18 . 6 14 . 3 . 36 1 72 Impact . | . . . . . . . . . . . . Slashing 153 | . 17 18 . 6 14 . 3 . 27 1 67 Piercing . | . . . . . . . . . . . . Sneak Attacks 46 | . 1 3 . 4 3 . . . 21 . 14 Combat Hostiles . | . . . . . . . . . . . . Follow-up Attacks . | . . . . . . . . . . . . Damage Inflicted 23553 | 103 672 962 . 526 374 919 80 1252 5298 1432 11935 Guns 3122 | 103 500 211 . . 106 648 . . 504 . 1050 Cannons 6496 | . . . . . 98 18 . 935 1751 108 3586 Explosions 10390 | . . 565 . 221 . 253 . 317 1655 1324 6055 Melee 3479 | . 172 186 . 305 170 . 70 . 1367 . 1209 Ramming 66 | . . . . . . . 10 . 21 . 35 Kinetic 3283 | . . 15 . . 98 . . 335 593 80 2162 Thermal 3644 | 49 175 74 . . 106 472 . 600 1320 . 848 Explosive 9680 | . . 565 . 221 . 219 . 317 1044 1324 5990 Electromagnetic 3401 | 54 325 122 . . . 228 . . 953 28 1691 Impact . | . . . . . . . . . . . . Slashing 3479 | . 172 186 . 305 170 . 70 . 1367 . 1209 Piercing . | . . . . . . . . . . . . Highest Corruption 7 | . . . . . . 3 2 2 . . 7 Average Corruption 3 | . . . . . . 2 2 1 . . 3 Corruption Purged 6 | . . . . . . 1 . 2 . . 3 Effects 86 | . . . . . . 20 . 4 . . 62 Message Errors 18 | . . . . . . 3 . 2 . . 13 Matter Fused 18 | . . . . . . 6 . . . . 12 Heat Flow Errors 13 | . . . . . . 4 . . . . 9 Energy Discharges 6 | . . . . . . 1 . 1 . . 4 Parts Rejected 2 | . . . . . . . . . . . 2 Data Loss (minor) 9 | . . . . . . 3 . . . . 6 Data Loss (major) 1 | . . . . . . . . . . . 1 Misfires 2 | . . . . . . . . . . . 2 Targeting Errors 14 | . . . . . . 3 . . . . 11 Weapon Failures 3 | . . . . . . . . 1 . . 2 Overload Shots . | . . . . . . . . . . . . Overflow Damage 1637 | . . 164 . 108 52 11 . 5 571 . 726 Projectiles 84 | . . . . . . . . 5 21 . 58 Explosions 483 | . . 117 . . . 11 . . 20 . 335 Melee 1070 | . . 47 . 108 52 . . . 530 . 333 Knockbacks 26 | . . . . . . . . 1 3 2 20 Impact . | . . . . . . . . . . . . Kinetic 24 | . . . . . . . . 1 3 2 18 Secondary 2 | . . . . . . . . . . . 2 Self-Inflicted Damage 549 | . . 78 . 21 . 49 . 28 241 . 132 Shots 19 | . . 4 . 1 . 1 . 1 4 . 8 Rammed 5 | . . . . . . . 1 . 1 . 3 Targets Rammed 6 | . . . . . . . 1 . 1 . 4 Kicked . | . . . . . . . . . . . . Crushed 1 | . . . . . . . . . . . 1 Highest Temperature 495 | 120 220 204 . . 239 495 . 198 357 54 485 Average Temperature 91 | 54 71 106 . . 101 143 . 60 87 11 92 Received Heat Transfer 2188 | . 30 144 . . 108 216 108 126 510 9 937 Effects 8 | . . . . . . 2 . . . . 6 Shutdowns 3 | . . . . . . 1 . . . . 2 Short Circuit 1 | . . . . . . . . . . . 1 Damage (minor) 1 | . . . . . . 1 . . . . . Damage (major) 3 | . . . . . . . . . . . 3 Siege Activations . | . . . . . . . . . . . . Robots Corrupted 7 | . . . . . . 1 . . 3 . 3 Combat Hostiles 6 | . . . . . . . . . 3 . 3 Parts Fried 28 | . 1 1 . . . 2 . . 5 . 19 Impact Corruptions 1 | . . . . . . . . . . . 1 Robots Melted . | . . . . . . . . . . . . Combat Hostiles . | . . . . . . . . . . . . Parts Melted 12 | . 1 . . . . 1 . 5 2 . 3 Heat Transferred 5837 | 148 518 222 . . 222 1012 . 888 1473 . 1354 Parts Sabotaged . | . . . . . . . . . . . . Parts Stolen . | . . . . . . . . . . . . Parts Stripped . | . . . . . . . . . . . . Power Chain Reactions 5 | . . . . . . 1 . . 3 . 1 Missiles Intercepted . | . . . . . . . . . . . . Alert | -11 -10 -10 -10 -9 -8 -8 -8 -8 -7 -7 -7 ------- Run | Scr Mat Min Exi Min Mat Gar Mat Gar Fac Gar Fac Peak Influence 1607 | 10 232 190 . 100 139 530 258 857 775 609 1607 Average Influence 434 | 1 116 100 . 97 102 399 258 612 446 401 536 Maximum Alert Level 5 | . 1 . . . . 2 1 3 3 2 5 Low Security (%) 25 | . . . . . . . . . . . . Level 1 25 | . . . . . . . . . . . . Level 2 34 | . . . . . . . . . . . . Level 3 10 | . . . . . . . . . . . . Level 4 3 | . . . . . . . . . . . . Level 5 . | . . . . . . . . . . . . High Security . | . . . . . . . . . . . . Max Security . | . . . . . . . . . . . . Squads Dispatched 36 | . 2 . . . 2 . 1 . 10 . 21 Investigation 1 | . . . . . . . . . 1 . . Extermination 12 | . . . . . . . . . 5 . 7 Reinforcement 13 | . 2 . . . 2 . 1 . . . 8 Assault 7 | . . . . . . . . . 1 . 6 Garrison 3 | . . . . . . . . . 3 . . Intercept . | . . . . . . . . . . . . Construction Impeded 4 | . . . . . . . . . . . 4 Haulers Reinforced 2 | . . . . . . . . . . . 2 Stealth | -11 -10 -10 -10 -9 -8 -8 -8 -8 -7 -7 -7 --------- Run | Scr Mat Min Exi Min Mat Gar Mat Gar Fac Gar Fac Distress Signals 11 | . 2 2 . 1 . 1 . . 2 . 3 Communications Jammed . | . . . . . . . . . . . . Distress Signals . | . . . . . . . . . . . . Times Spotted 269 | . 19 14 . 6 13 17 5 29 38 13 115 Peak Tracking Total 8 | . 4 4 . 4 5 6 4 4 5 5 8 Tactical Retreats 25 | . 2 2 . 1 4 1 . 3 1 . 11 Traps | -11 -10 -10 -10 -9 -8 -8 -8 -8 -7 -7 -7 ------- Run | Scr Mat Min Exi Min Mat Gar Mat Gar Fac Gar Fac Traps Triggered 17 | . 1 . . . . 8 . 3 3 1 1 Indirectly . | . . . . . . . . . . . . Trap Hack Attempts 64 | . . . . . . . . . 21 43 . Triggered . | . . . . . . . . . . . . Disarmed 1 | . . . . . . . . . 1 . . Reprogrammed 4 | . . . . . . . . . 2 2 . Reused 1 | . . . . . . . . . 1 . . Traps Extracted . | . . . . . . . . . . . . Installed . | . . . . . . . . . . . . Triggered 4 | . . . . . . . . . 3 . 1 Machines | -11 -10 -10 -10 -9 -8 -8 -8 -8 -7 -7 -7 ---------- Run | Scr Mat Min Exi Min Mat Gar Mat Gar Fac Gar Fac Machines Disabled 31 | . . . . . 1 1 . 4 6 2 17 Max in Single Turn 6 | . . . . . 1 1 . 1 2 1 6 Garrison Access 2 | . . . . . . . . . . . 2 Garrison Relay 6 | . . . . . . 1 . 3 . 2 . Machines Sabotaged . | . . . . . . . . . . . . Garrisons Compromised . | . . . . . . . . . . . . Overloaded Fab Kills . | . . . . . . . . . . . . Fab Network Shutdowns . | . . . . . . . . . . . . Hacking | -11 -10 -10 -10 -9 -8 -8 -8 -8 -7 -7 -7 --------- Run | Scr Mat Min Exi Min Mat Gar Mat Gar Fac Gar Fac Machines Accessed 43 | . 5 . . . 4 . 1 . 16 . 17 Terminals 28 | . 3 . . . 3 . . . 10 . 12 Fabricators . | . . . . . . . . . . . . Repair Stations 6 | . . . . . . . . . 4 . 2 Recycling Units 5 | . 2 . . . . . . . 1 . 2 Scanalyzers . | . . . . . . . . . . . . Garrison Access 4 | . . . . . 1 . 1 . 1 . 1 Total Hacks 106 | . 14 . . . 7 . 1 . 42 . 42 Successful 62 | . 4 . . . 4 . 1 . 30 . 23 Failed 44 | . 10 . . . 3 . . . 12 . 19 Catastrophic 4 | . . . . . 1 . . . 1 . 2 Database Lockouts . | . . . . . . . . . . . . Manual 66 | . 7 . . . 7 . . . 24 . 28 Terminals 77 | . 8 . . . 6 . . . 29 . 34 Fabricators . | . . . . . . . . . . . . Repair Stations 16 | . . . . . . . . . 11 . 5 Recycling Units 9 | . 6 . . . . . . . 1 . 2 Scanalyzers . | . . . . . . . . . . . . Garrison Access 4 | . . . . . 1 . 1 . 1 . 1 Terminal Hacks 13 | . 1 . . . . . . . 6 . 6 Terminal Index 3 | . 1 . . . . . . . 1 . 1 Garrison Index 1 | . . . . . . . . . . . 1 Unreport Threat 3 | . . . . . . . . . . . 3 Locate Traps 2 | . . . . . . . . . 2 . . Zone Layout 4 | . . . . . . . . . 3 . 1 Fabricator Hacks . | . . . . . . . . . . . . Repair Station Hacks 12 | . . . . . . . . . 9 . 3 Scan Component 7 | . . . . . . . . . 5 . 2 Repair 5 | . . . . . . . . . 4 . 1 Recycling Unit Hacks 3 | . 1 . . . . . . . 1 . 1 Retrieve Components 3 | . 1 . . . . . . . 1 . 1 Scanalyzer . | . . . . . . . . . . . . Garrison Access Hacks 4 | . . . . . 1 . 1 . 1 . 1 Unlock Access 3 | . . . . . 1 . 1 . 1 . . Seal Access 1 | . . . . . . . . . . . 1 Unauthorized Hacks 85 | . 9 . . . 8 . . . 35 . 33 Terminals 30 | . 2 . . . 3 . . . 13 . 12 Track 13 | . 2 . . . 1 . . . 6 . 4 Assimilate 7 | . . . . . 1 . . . 3 . 3 Botnet 7 | . . . . . 1 . . . 3 . 3 Disrupt 1 | . . . . . . . . . . . 1 Operators 2 | . . . . . . . . . 1 . 1 Fabricators . | . . . . . . . . . . . . Repair Stations . | . . . . . . . . . . . . Recycling Units . | . . . . . . . . . . . . Scanalyzers . | . . . . . . . . . . . . Garrison Access . | . . . . . . . . . . . . Data Cores Recovered . | . . . . . . . . . . . . Used . | . . . . . . . . . . . . Hacking Detections 39 | . 5 . . . 4 . . . 14 . 16 Full Trace Events . | . . . . . . . . . . . . Feedback Events . | . . . . . . . . . . . . Feedback Blocked . | . . . . . . . . . . . . Robot Schematics Acquired . | . . . . . . . . . . . . Robots Built . | . . . . . . . . . . . . Matter . | . . . . . . . . . . . . Time . | . . . . . . . . . . . . Total Robot Build Rating . | . . . . . . . . . . . . Part Schematics Acquired . | . . . . . . . . . . . . Parts Built . | . . . . . . . . . . . . Matter . | . . . . . . . . . . . . Time . | . . . . . . . . . . . . Total Part Build Rating . | . . . . . . . . . . . . Parts Repaired 5 | . . . . . . . . . 4 . 1 Time 196 | . . . . . . . . . 152 . 44 Parts Recycled . | . . . . . . . . . . . . Recycled Matter . | . . . . . . . . . . . . Retrieved Matter . | . . . . . . . . . . . . Retrieved Components 11 | . . . . . . . . . 9 . 2 Parts Scanalyzed . | . . . . . . . . . . . . Part Schematics Acquired . | . . . . . . . . . . . . Parts Damaged . | . . . . . . . . . . . . Bothacking | -11 -10 -10 -10 -9 -8 -8 -8 -8 -7 -7 -7 ------------ Run | Scr Mat Min Exi Min Mat Gar Mat Gar Fac Gar Fac Used RIF Installer 3 | . . . . . . 1 . 1 . 1 . Patrol Navigation 1 | . . . . . . . . 1 . . . Program Shield 1 | . . . . . . . . . . 1 . Robots Hacked 14 | . . . . . . . . . 10 . 4 Non-combat 14 | . . . . . . . . . 10 . 4 Combat . | . . . . . . . . . . . . Robot Hacks Applied 26 | . . . . . . . . . 18 . 8 parse_system 3 | . . . . . . . . . 1 . 2 find_chute 2 | . . . . . . . . . 2 . . ignore_repairs 3 | . . . . . . . . . 3 . . drop_inventory 4 | . . . . . . . . . 2 . 2 recall_reinforcements 1 | . . . . . . . . . . . 1 find_station 1 | . . . . . . . . . 1 . . purge_threat 7 | . . . . . . . . . 4 . 3 disarm_traps 2 | . . . . . . . . . 2 . . summon_haulers 1 | . . . . . . . . . 1 . . clear_repairs 1 | . . . . . . . . . 1 . . clear_recycling 1 | . . . . . . . . . 1 . . Relay Couplers Released 26 | . . . . . . 3 . 13 . 8 2 Machine Destruction 26 | . . . . . . 3 . 13 . 8 2 Attached 5 | . . . . . . . . . 3 . 2 Robots Rewired 8 | . . . . . . . . 6 2 . . Allies Hacked . | . . . . . . . . . . . . Hacks Repelled . | . . . . . . . . . . . . Allies | -11 -10 -10 -10 -9 -8 -8 -8 -8 -7 -7 -7 -------- Run | Scr Mat Min Exi Min Mat Gar Mat Gar Fac Gar Fac Total Allies 11 | . . . . . . . . 6 3 . 2 Largest Group 6 | . . . . . . . . 6 3 1 2 Highest-Rated Group 96 | . . . . . . . . 96 53 16 36 Highest-Rated Ally 30 | . . . . . . . . 16 30 16 26 Total Orders 36 | . . . . . . . . 2 19 9 6 STAY 2 | . . . . . . . . . 1 . 1 GOTO 20 | . . . . . . . . 1 11 5 3 FOLLOW 14 | . . . . . . . . 1 7 4 2 Ally Attacks 58 | . . . . . . . . 31 9 15 3 Total Damage 753 | . . . . . . . . 402 150 183 18 Kills 9 | . . . . . . . . 5 1 3 . Allies Corrupted . | . . . . . . . . . . . . Allies Melted . | . . . . . . . . . . . . Intel | -11 -10 -10 -10 -9 -8 -8 -8 -8 -7 -7 -7 ------- Run | Scr Mat Min Exi Min Mat Gar Mat Gar Fac Gar Fac Robot Analysis Total . | . . . . . . . . . . . . Derelict Logs Recovered 1 | . . 1 . . . . . . . . . Drone Launches . | . . . . . . . . . . . . Drone Recoveries . | . . . . . . . . . . . . Exploration | -11 -10 -10 -10 -9 -8 -8 -8 -8 -7 -7 -7 ------------- Run | Scr Mat Min Exi Min Mat Gar Mat Gar Fac Gar Fac Turns Passed 14650 | 93 802 648 197 390 392 1315 45 1980 3595 689 4504 Spaces Moved 7339 | 67 618 447 191 305 134 575 16 796 1562 404 2224 Core 3 | 3 . . . . . . . . . . . Treads 2362 | . 9 . . . 87 575 16 796 487 . 392 Legs . | . . . . . . . . . . . . Wheels 4974 | 64 609 447 191 305 47 . . . 1075 404 1832 Hover . | . . . . . . . . . . . . Flight . | . . . . . . . . . . . . Fastest Speed 50 | 50 80 100 100 110 110 200 200 200 140 140 130 Average Speed 152 | 87 93 100 101 110 175 200 200 210 164 140 151 Slowest Speed 260 | 90 160 100 110 110 200 200 200 260 220 140 260 Overloaded Moves . | . . . . . . . . . . . . Propulsion Burnouts . | . . . . . . . . . . . . Robots Hopped . | . . . . . . . . . . . . Cave-ins Triggered 1 | . . . . . . 1 . . . . . Exploration Rate (%) 50 | 5 84 90 59 60 20 67 4 79 38 51 51 Regions Visited 11 Branch Regions 3 Pre-discovered Areas 1 | . . 1 . . . . . . . . . Known Exits Taken 3 | . . . . . 1 . 1 . 1 . . Unknown Exits Taken 5 | 1 1 1 1 1 . . . . . . . Scrap Searched 2 | . . 1 . 1 . . . . . . . Spaces Dug 114 | . 10 16 . 17 5 . . . 19 . 47 Terrain Destroyed 730 | . 10 89 . 17 11 13 . 52 89 54 395 Melee 79 | . 10 5 . . 5 . . . 12 . 47 Projectile 27 | . . . . . 6 . . 2 10 . 9 AOE 624 | . . 84 . 17 . 13 . 50 67 54 339 Actions | -11 -10 -10 -10 -9 -8 -8 -8 -8 -7 -7 -7 --------- Run | Scr Mat Min Exi Min Mat Gar Mat Gar Fac Gar Fac Total 9721 | 88 744 578 193 345 241 675 21 1019 2372 503 2942 Wait 1016 | 5 43 78 . 29 45 27 . 37 469 12 271 Move 7328 | 66 617 446 190 304 134 573 16 794 1562 402 2224 Hop . | . . . . . . . . . . . . Pick Up 128 | 6 12 2 2 2 13 3 . 25 35 3 25 Fast Attach 39 | 6 5 1 . . 1 . . 2 8 . 16 Attach 60 | . 1 6 . 1 7 6 . 6 15 1 17 Detach 12 | . 1 1 . . 2 1 . . 3 . 4 Swap 216 | . 6 5 1 1 3 8 1 14 70 14 93 Drop 86 | . 9 1 . . 1 . . 9 34 3 29 Fire 501 | 5 33 20 . 2 21 41 . 58 118 16 187 Melee 167 | . 17 18 . 6 14 . 3 . 36 1 72 Ram 2 | . . . . . . . . . 1 . 1 Kick . | . . . . . . . . . . . . Crush 4 | . . . . . . . 1 . . . 3 Escape Stasis 28 | . . . . . . 16 . 4 . 8 . Rewire 70 | . . . . . . . . 70 . . . Trap 64 | . . . . . . . . . 21 43 . Miscellaneous . | . . . . . . . . . . . . Route ------- -11/Scrapyard -10/Materials (discovered 4 exits: [*Mat x3] / [*Min]) -10/Mines (discovered 2 exits: [*Mat] / [*Exi]) -10/Exiles (discovered 2 exits: [*Min x2]) -9/Mines -8/Materials (discovered 2 exits: Fac / Gar) -8/Garrison (discovered 3 exits: *Mat x3) -8/Materials -8/Garrison (discovered 3 exits: *Fac x3) -7/Factory (discovered 4 exits: *Fac / *Low x2 / Gar) -7/Garrison -7/Factory (discovered 3 exits: *Fac x2 / *Low) History --------- Turn | Location | Event 36 | -11/Scrapyard | Discovered new exit (range 13) 94 | -11/Scrapyard | Entered Materials 178 | -10/Materials | Discovered new exit (range 15) 249 | -10/Materials | Discovered new exit (range 13) 305 | -10/Materials | Build established: Mutant 433 | -10/Materials | Discovered new exit (range 14) 842 | -10/Materials | Discovered new exit (range 10) 896 | -10/Materials | Entered Mines 947 | -10/Mines | Received a Rocket Launcher from a helpful Derelict 974 | -10/Mines | Discovered new exit (range 11) 983 | -10/Mines | Learned location of Storage (-8) 1146 | -10/Mines | Excavation squad dispatched 1146 | -10/Mines | A large section of the Mines collapsed 1329 | -10/Mines | Core integrity fell below 50% 1397 | -10/Mines | Learned location of 1 exit from Materials 1398 | -10/Mines | Destroyed 7 combat bots 1539 | -10/Mines | Deemed a non-threat by the Exiles lab entrance 1540 | -10/Mines | Discovered new exit (range 5) 1544 | -10/Mines | Entered Exiles 1557 | -10/Exiles | Discovered new exit (range 15) 1569 | -10/Exiles | Met 8R-AWN 1585 | -10/Exiles | Met EX-HEX 1612 | -10/Exiles | Met EX-BIN 1624 | -10/Exiles | Met EX-DEC 1729 | -10/Exiles | Discovered new exit (range 14) 1741 | -10/Exiles | Entered Mines 1774 | -9/Mines | Met a Derelict bent on vengeance 1918 | -9/Mines | Discovered new exit (range 6) 1994 | -9/Mines | Assembled infested the area 1997 | -9/Mines | Build established: Hauler-Mutant 1999 | -9/Mines | Assisted by a Guerilla fighting off Assembled 2131 | -9/Mines | Entered Materials 2131 | -8/Materials | Evolved 4 slots: Utility x4 2132 | -8/Materials | Identified exit to Factory 2523 | -8/Materials | Identified exit to Garrison 2523 | -8/Materials | Entered Garrison 2681 | -8/Garrison | Triggered checkpoint 2737 | -8/Garrison | Triggered checkpoint 2745 | -8/Garrison | Crushed by falling debris 2771 | -8/Garrison | Triggered checkpoint 2790 | -8/Garrison | Lost 3 parts (1p2w) 2801 | -8/Garrison | Destroyed 7 combat bots 2921 | -8/Garrison | Discovered new exit (range 10) 2970 | -8/Garrison | Triggered checkpoint 3023 | -8/Garrison | Garrison Relay disabled 3155 | -8/Garrison | Lost 4 parts (2p1n1u) 3204 | -8/Garrison | Discovered new exit (range 8) 3372 | -8/Garrison | Discovered new exit (range 13) 3408 | -8/Garrison | Installed Relay Interface Framework 3838 | -8/Garrison | Entered Materials 3883 | -8/Materials | Identified exit to Garrison 3883 | -8/Materials | Entered Garrison 4076 | -8/Garrison | Triggered checkpoint 4077 | -8/Garrison | Core integrity fell below 50% 4289 | -8/Garrison | Garrison Relay disabled 4336 | -8/Garrison | Triggered checkpoint 4376 | -8/Garrison | Triggered checkpoint 4412 | -8/Garrison | Triggered checkpoint 4912 | -8/Garrison | Discovered exit to Factory (range 14) 4983 | -8/Garrison | Build established: Commander-Mutant 5114 | -8/Garrison | Triggered checkpoint 5207 | -8/Garrison | Discovered exit to Factory (range 10) 5281 | -8/Garrison | Garrison Relay disabled 5389 | -8/Garrison | Triggered checkpoint 5459 | -8/Garrison | Discovered exit to Factory (range 9) 5597 | -8/Garrison | Build established: Bothacker-Mutant 5662 | -8/Garrison | Triggered checkpoint 5708 | -8/Garrison | Garrison Relay disabled 5809 | -8/Garrison | Expanded RIF knowledge: Patrol Navigation 5818 | -8/Garrison | Triggered checkpoint 5863 | -8/Garrison | Entered Factory 5863 | -7/Factory | Accompanied by 3 allies 5863 | -7/Factory | Evolved 2 slots: Utility x2 6885 | -7/Factory | Discovered new exit (range 9) 6912 | -7/Factory | Identified exit to Factory 7296 | -7/Factory | Repaired Rocket Launcher? 7367 | -7/Factory | Repaired Imp. EM Pulse Cannon 8141 | -7/Factory | Garrison activated, responded to threat 8196 | -7/Factory | Build established: Hauler-Mutant 8483 | -7/Factory | Repaired Imp. Light Armor Plating 8599 | -7/Factory | Discovered new exit (range 4) 8602 | -7/Factory | Identified exit to Lower Caves 8835 | -7/Factory | Discovered exit to Lower Caves (range 15) 8957 | -7/Factory | Repaired Imp. Light Armor Plating 9063 | -7/Factory | First assault squad dispatched 9458 | -7/Factory | Identified exit to Garrison 9458 | -7/Factory | Entered Garrison 9458 | -7/Garrison | Accompanied by 1 ally 9465 | -7/Garrison | Expanded RIF knowledge: Program Shield 9502 | -7/Garrison | Triggered checkpoint 9555 | -7/Garrison | Garrison Relay disabled 9705 | -7/Garrison | Triggered checkpoint 9705 | -7/Garrison | Triggered checkpoint 9718 | -7/Garrison | Core integrity fell below 50% 9735 | -7/Garrison | Triggered checkpoint 9824 | -7/Garrison | Triggered checkpoint 9840 | -7/Garrison | Spotted B-75 Beast 9840 | -7/Garrison | Spotted B-75 Beast 9868 | -7/Garrison | Discovered new exit (range 15) 9909 | -7/Garrison | Identified exit to Factory 10019 | -7/Garrison | Garrison Relay disabled 10147 | -7/Garrison | Entered Factory 10147 | -7/Factory | Accompanied by 1 ally 10686 | -7/Factory | Repaired Imp. EM Pulse Cannon 11173 | -7/Factory | Discovered exit to Lower Caves (range 4) 12878 | -7/Factory | Found Rocket Array 12882 | -7/Factory | Found Rocket Array 12990 | -7/Factory | Destroyed 9 combat bots 13290 | -7/Factory | Discovered exit to Factory (range 14) 13347 | -7/Factory | First assault squad dispatched 13724 | -7/Factory | Discovered exit to Factory (range 2) 13915 | -7/Factory | Core integrity fell below 20% 14241 | -7/Factory | Destroyed 7 combat bots 14372 | -7/Factory | Destroyed 8 combat bots 14651 | -7/Factory | Destroyed by G-47 Trooper with Particle Gun Last Messages --------------- 14627_ Nuclear Reactor explodes. 14627_ G-47 Trooper destroyed. 14627_ Terminal disabled. 14627_ K-01 Serf collects debris. 14632_ System corrupted: Component data lost. 14634_ K-01 Serf collects debris. 14635_ The unstable cave ceiling collapses. 14637_ K-01 Serf collects debris. 14638_ The unstable cave ceiling collapses. 14640_ K-01 Serf collects debris. 14643_ C-30 ARC bursts open, deploying its payload. 14643_ G-50 Soldier unfolds itself. 14643_ L-41 Fighter unfolds itself. 14643_ G-47 Trooper unfolds itself. 14643_ I-36 Angel unfolds itself. 14646_ G-47 Trooper destroyed. 14646_ K-01 Serf destroyed. 14646_ I-36 Angel destroyed. 14646_ G-50 Soldier destroyed. 14649_ The unstable cave ceiling collapses. Map ----- +----------------------------------------------------+ | ?????????????????####+###???????# # ????? | | ????????????????? # #???????# # ????? | | ????????????????? # ######### #?#???? | | ???????????????"" + T #?????? | | ??????????????""" # o ###########+###?????? | | ??????????????? # # ###???????????????? | | ??????????????? !## # #???????????????? | | ???????????????# ##??????????????? | | ????####+####### ## # #??????????????? | | ????# #??????????????? | | ????# ##"#### #??????????????? | | ????# " % #??????????????? | | ????# " !%= #??????????????? | | ???????# " * = #??????????????? | | ???????# " ! g = #??????????????? | | ???????# " = a = #??????????????? | | ???????# " [ #??????????????? | | ???????# " #??????????????? | | ???????+ " l #??????????????? | | ???????# "######## ###??????????????? | | ???????# ## # ?????????? | | ???????+ ?# """ ####?? ?????????? | | ???????# ## T ! ##?????? ""??????????? | | ???????# ##??????????????????? | | ???????# #??????????????????? | | ???????# @ ## #?????????????????? | | ???????# # "??????????????? | | ???????# # # ???????????? | | ???????# # # ????????? | | ???????# # #?= ?????????? | | ???????? =%= ##?? ?????????? | | ????????# ##??? ??????????? | | ????????### ### #?????##???????????? | | ??????????#???# # ??????????????????? | | ??????????????### """"" ?????????????????? | | ????????????????# """"" ?????????????????? | | ????????????????+ """ ????????????????? | | ????????????????#?????? ???????????????? | | ???????????????????????? ????????????????? | | ???????????????????????? ???????????????????? | | ????????????????????????????????????????????? | | ????????????????????????????????????????????? | | ????????????????????????????????????????????? | | ????????????????????????????????????????????? | | ????????????????????????????????????????????? | | ????????????????????????????????????????????? | | ????????????????????????????????????????????? | | ????????????????????????????????????????????? | | ????????????????????????????????????????????? | | ????????????????????????????????????????????? | +----------------------------------------------------+ Best States ------------- Heat Dissipation 61 Coolant Potential 65 Energy Generation 18 Energy Capacity 310 Matter Stores 300 Matter Capacity 300 Sight Range 16 Robot Scan Range 16 Terrain Scan Range 16 Terrain Scan Density 10 Armor Coverage 600 Core Shielding 20 Weapon Cycling 15 Evasion (%) 44 Launcher Accuracy 20 Recoil Reduction 2 Matter Filtering 30 Item Schematics ----------------- None Robot Schematics ------------------ None Fabricated ------------ Nothing Alien Tech Used ----------------- None Achievements -------------- None Challenges ------------ None Game ------ Seed PrecisionMediumJammer Manual? 0 Play Time 02:35:55 Cumulative 774.5 hours Start 2019.10.22 @ 18:27:48 End 2019.10.22 @ 22:03:10 Sessions 1 Manual Loads 0 Difficulty Rogue Special Mode None Game No. 294 Rogue 294 Adventurer 0 Explorer 0 Win Type - Total 20 Types 10/1/7/0/0/0/2 Lore% 95 Gallery% 94 Achievement% 79 Wizard Run 0 Options --------- ASCII 0 Keyboard 0 Movement Vi Keybinds 0 Fullscreen 0 Font 12/Crisp Map View 76x50 Tactical HUD 1 Map Filters NONE Filters NONE Steam 1 RUN: 7d7e37e2-124a-47ad-8d23-1402ca226160